[Event "41st OBSenEM 2025"]
[Site "Berlin"]
[Date "2025.02.04"]
[Round "1.1"]
[White "Meister, Jakob"]
[Black "Kranch, Klaus"]
[Result "1-0"]
[Annotator "TA"]
[ECO "A13"]
[WhiteElo "2418"]
[BlackElo "1851"]
[PlyCount "73"]
[EventDate "2025.02.04"]
[EventType "swiss"]
[EventCountry "GER"]
[SourceTitle "playchess.com"]
[Source "ChessBase"]
[SourceQuality "1"]
[TimeControl "40/5400+30:1800+30"]

{[%evp 17,73,0,11,-16,10,9,24,27,30,28,17,19,24,16,53,12,11,16,66,77,90,71,219,206,473,479,575,535,558,555,616,645,612,539,595,572,556,502,564,542,789,760,1564,1522,2726,2920,2604,2452,29979,29980,29981,29982,29987,29987,29987,2447,29991,29992]} 1. Nf3 {[%emt 0:00:04]} d5 {[%emt 0:00:20]} 2. c4 {[%emt 0:00:11]} e6 {[%emt 0:00:23]} 3. e3 {[%emt 0:00:09]} Nf6 {[%emt 0:00:42]} 4. b3 {[%emt 0:00:10]} c6 {[%emt 0:01:24]} 5. Be2 {[%emt 0:00:14]} Be7 {[%emt 0:00:49]} 6. O-O {[%emt 0:00:17]} O-O {[%emt 0:00:08]} 7. Bb2 {[%emt 0:00:10]} Nbd7 {[%emt 0:01:28]} 8. d3 {[%emt 0:00:11]} b6 {[%emt 0:01:59]} 9. Nbd2 {[%emt 0:00:49]} Bb7 {[%emt 0:03:07]} 10. e4 {[%emt 0:00:28] A13: English Opening: 1...e6.} Rc8 {[%emt 0:03:07]} 11. Rc1 $146 {[%emt 0:05:32]} (11. Re1 Qc7 12. Bf1 Rfd8 13. Rc1 dxe4 14. dxe4 c5 15. Qc2 Nf8 16. e5 Ng4 17. Ne4 Ng6 {½-½ Kisadere,K (1809)-Bayram,I (1525) TUR Cup Antalya 2019 (10)}) 11... h6 {[%emt 0:02:33]} 12. Re1 {[%emt 0:09:38] White has an edge.} c5 {[%emt 0:05:26]} 13. cxd5 {[%emt 0:01:35]} exd5 {[%emt 0:00:25]} 14. e5 {[%emt 0:00:03]} Nh7 {[%emt 0:05:03][%cal Bf6h7,Bh7g5,Bg5e6][%mdl 32]} 15. d4 {[%emt 0:01:58]} Ng5 {[%emt 0:04:28]} 16. Nf1 {[%emt 0:05:26][%cal Bd2f1,Bf1e3,Be3f5][%mdl 32]} Ne6 {[%emt 0:02:27]} 17. Ne3 {[%emt 0:04:24]} cxd4 {[%emt 0:07:28]} ({Black should try} 17... Re8 $11) 18. Rxc8 $14 {[%emt 0:00:33]} Qxc8 {[%emt 0:00:09] [#]} 19. Nf5 {[%emt 0:00:37]} Bb4 {[%emt 0:03:15] [#] This move loses the game for Black.} (19... Bc5 $16) 20. a3 $1 $18 {[%emt 0:01:33][%cal Ba2a3,Ba3b4][%mdl 32]} g6 $2 {[%emt 0:14:09]} (20... Bc5 {is a better defense.} 21. b4 (21. Bxd4 Bxa3 22. Qa1 Bb4 $14) (21. N5xd4 Nxd4 22. Bxd4 Bxa3 $11) (21. N3xd4 Qd8 $16) 21... Qc7) 21. Nxh6+ {[%emt 0:01:07]} ({But not} 21. axb4 gxf5 22. Nxd4 (22. Bxd4 Re8 $18) 22... Qd8 23. Nxf5 d4 24. Bxd4 (24. Nxd4 Nf4 $18) 24... Qg5 $18) 21... Kg7 {[%emt 0:00:45]} 22. Nf5+ {[%emt 0:02:02]} gxf5 {[%emt 0:00:19]} 23. axb4 {[%emt 0:00:02]} Rh8 {[%emt 0:05:50][%cal Bf8h8,Bh8h5,Bh5f5,Bf5f7][%mdl 32]} 24. Nxd4 {[%emt 0:01:42]} Kf8 {[%emt 0:05:55]} 25. Nxf5 {[%emt 0:00:53]} Qd8 {[%emt 0:01:07]} 26. Qd2 {[%emt 0:02:55]} d4 {[%emt 0:06:41]} 27. Bf1 {[%emt 0:07:43]} Rh5 {[%emt 0:04:49]} 28. Nxd4 {[%emt 0:01:07][%cal Bf5d4,Bd4e6,Be6f4][%mdl 32]} Qh4 {[%emt 0:02:56][%csl Gh5][%cal Rh4h2]} 29. Nxe6+ {[%emt 0:00:23]} Kg8 {[%emt 0:02:57]} 30. h3 {[%emt 0:00:31]} (30. Qxd7 $2 Qxh2#) 30... Bc8 {[%emt 0:04:01]} 31. Nf4 {[%emt 0:01:29][%cal Oe5e6] Hoping for e6!.} Rf5 {[%emt 0:02:01]} 32. g3 {[%emt 0:01:03]} Qg5 {[%emt 0:01:44]} 33. e6 {[%emt 0:01:13]} fxe6 {[%emt 0:03:07]} 34. Rxe6 {[%emt 0:00:41]} Nf8 {[%emt 0:00:30]} 35. Rc6 {[%emt 0:01:26]} Bd7 {[%emt 0:00:34]} 36. Rd6 {[%emt 0:01:38]} (36. Bc4+ $142 Kh7 37. Rg6 Qxf4 38. Rg7+ (38. gxf4 Re5 39. Rg8 Be6 40. Rxf8 Bxc4 41. Bxe5 Bg8 42. Qd7+ Kg6 43. Qg7+ Kh5 44. Qg5#) (38. Qxf4 Rxf4 39. Rg7+ Kh6 $18) 38... Kh6 39. gxf4 Kh5 40. Bf7+ (40. Rxd7 Nxd7 41. Qxd7 Rxf4 42. Be2+ Kg5 43. Qg7+ Kf5 44. Bg4+ Ke4 45. Qd4#) 40... Kh6 41. Qd4 (41. Qd6+ Ne6 42. Bxe6 Bxe6 43. Qxe6+ Rf6 44. Qxf6+ Kh5 45. Rh7#) 41... Rxf7 42. Rxf7 Kh5 43. Qh8+ Kg6 44. Rf6#) 36... Rf7 {[%emt 0:01:18]} 37. Bc4 {[%emt 0:00:46][%csl LRd7,LRf7] Weighted Error Value: White=0.14 (very precise) /Black=1.36  Mistake:       	---       	Black=3      Inaccurate:     	White=1     	Black=4      OK:         	White=11    	Black=5      Best:        	White=1     	---        Strong:       	White=1     	---} 1-0

[Event "41st OBSenEM 2025"]
[Site "Berlin"]
[Date "2025.02.04"]
[Round "1.2"]
[White "Bartonek, Rolf"]
[Black "Heinig, Wolfram"]
[Result "0-1"]
[Annotator "TA"]
[ECO "B12"]
[WhiteElo "1849"]
[BlackElo "2196"]
[PlyCount "62"]
[EventDate "2025.02.04"]
[EventType "swiss"]
[EventCountry "GER"]
[SourceTitle "playchess.com"]
[Source "ChessBase"]
[SourceQuality "1"]
[TimeControl "40/5400+30:1800+30"]

{[%evp 12,62,29,25,27,17,0,0,3,4,0,-8,2,-8,0,-12,-13,-18,-16,-18,-16,-20,-7,-22,5,0,26,-39,0,-41,-28,-20,0,-48,-33,-33,-33,-149,-144,-133,-138,-217,-184,-339,-321,-334,-324,-557,-535,-716,-689,-805,-801]} 1. e4 {[%emt 0:00:06]} c6 {[%emt 0:00:09]} 2. d4 {[%emt 0:00:05]} d5 {[%emt 0:00:04]} 3. e5 {[%emt 0:00:22]} Bf5 {[%emt 0:00:12]} 4. Bd3 {[%emt 0:00:12]} Bxd3 {[%emt 0:00:24]} 5. Qxd3 {[%emt 0:00:09]} e6 {[%emt 0:00:06]} 6. Nf3 {[%emt 0:00:48]} Qa5+ {[%emt 0:03:14]} 7. Nbd2 {[%emt 0:01:37]} c5 {[%emt 0:04:54] B12: Caro-Kann: Advance Variation.} 8. dxc5 {[%emt 0:06:24]} Bxc5 {[%emt 0:04:26]} 9. c3 {[%emt 0:02:51] [#] Threatens to win with b4.} Qa6 {[%emt 0:02:19] The position is equal.} 10. Qxa6 {[%emt 0:01:55]} Nxa6 {[%emt 0:00:07]} 11. Nb3 $146 {[%emt 0:00:41]} (11. O-O Ne7 12. Nb3 Bb6 13. Nfd4 O-O 14. Bg5 Ng6 15. f4 h6 16. Bxh6 gxh6 17. Kh1 Nc5 18. Nxc5 Bxc5 19. Rae1 Bxd4 20. cxd4 {0-1 Shkolnikov,I-Velikanov,I Internet Section 07A g/8'+2" blitz 2004 (9)}) 11... Bb6 {[%emt 0:01:47]} 12. Nfd4 {[%emt 0:04:05]} Ne7 {[%emt 0:05:12]} 13. Ke2 {[%emt 0:02:12]} Nc6 {[%emt 0:04:47]} 14. Nxc6 {[%emt 0:01:41]} bxc6 {[%emt 0:00:10]} 15. Be3 {[%emt 0:01:06]} Rb8 {[%emt 0:05:19]} 16. Rab1 {[%emt 0:04:32]} Kd7 {[%emt 0:10:14]} 17. Rhd1 {[%emt 0:01:55]} c5 {[%emt 0:07:12]} 18. f4 {[%emt 0:01:49]} Kc6 {[%emt 0:03:31]} 19. Rd2 {[%emt 0:03:51]} (19. Nd2 $11) 19... Rb7 {[%emt 0:01:40]} 20. Kf3 {[%emt 0:11:07]} h5 {[%emt 0:03:18]} 21. g3 {[%emt 0:05:33]} g6 {[%emt 0:01:58]} 22. h3 {[%emt 0:05:53]} (22. Rdd1 $11) 22... Rhb8 {[%emt 0:02:46]} 23. Re2 {[%emt 0:02:32]} c4 {[%emt 0:05:04]} 24. Nd4+ {[%emt 0:01:14]} (24. Bxb6 $15 Rxb6 (24... cxb3 25. Bd4 $11) 25. Nd4+ Kb7 26. Rc2) 24... Bxd4 $17 {[%emt 0:03:30]} 25. Bxd4 {[%emt 0:00:27]} Nc5 {[%emt 0:00:29]} 26. Bxc5 {[%emt 0:00:22]} (26. g4 $17 {was called for.}) 26... Kxc5 {[%emt 0:00:43] KRR-KRR} 27. Rd2 $2 {[%emt 0:02:17] [#]} (27. g4) 27... a5 $19 28. Ke2 {[%emt 0:00:49]} a4 {[%emt 0:06:45]} 29. a3 $2 {[%emt 0:01:54]} (29. Kd1 a3 30. g4) 29... Rb3 {Black is clearly winning.} 30. Kd1 {[%emt 0:00:00]} Rxc3 {[%emt 0:00:49]} 31. Rc1 {[%emt 0:00:19]} Rxg3 {[%emt 0:00:30] Weighted Error Value: White=0.48/Black=0.09 (flawless)   Mistake:       	White=6     	---        Inaccurate:     	White=2     	Black=3      OK:         	White=3     	Black=4      Best:        	---       	Black=3} 0-1

[Event "41st OBSenEM 2025"]
[Site "Berlin"]
[Date "2025.02.04"]
[Round "1.3"]
[White "Postler, Reinhard"]
[Black "Oppermann, Peter"]
[Result "1-0"]
[Annotator "TA"]
[ECO "C65"]
[WhiteElo "2189"]
[BlackElo "1849"]
[PlyCount "78"]
[EventDate "2025.02.04"]
[EventType "swiss"]
[EventCountry "GER"]
[SourceTitle "playchess.com"]
[Source "ChessBase"]
[SourceQuality "1"]
[TimeControl "40/5400+30:1800+30"]

{[%evp 9,78,116,111,115,145,149,149,108,108,102,117,105,114,87,124,116,114,114,148,55,97,85,110,118,110,100,119,105,121,117,131,129,186,177,186,179,191,103,90,101,87,52,94,83,116,90,137,122,183,127,154,143,162,165,163,0,168,168,155,127,125,106,296,139,1044,1028,1014,1006,29988,29989,29989]} 1. e4 {[%emt 0:00:04]} e5 {[%emt 0:00:18]} 2. Nf3 {[%emt 0:00:05]} Nc6 {[%emt 0:00:13]} 3. Bb5 {[%emt 0:00:06]} Nf6 {[%emt 0:00:28]} 4. d3 {[%emt 0:00:19]} a6 {[%emt 0:00:59]} 5. Bxc6 {[%emt 0:01:03]} bxc6 {[%emt 0:00:58]} 6. Nxe5 {[%emt 0:01:14] C65: Ruy Lopez: Berlin Defence (3...Nf6), unusual lines and 4 0-0 Bc5.} Bb7 {[%emt 0:03:12]} 7. O-O {[%emt 0:00:30]} d5 {[%emt 0:00:54]} 8. exd5 {[%emt 0:02:50] White is clearly better.} cxd5 {[%emt 0:00:55]} 9. Re1 {[%emt 0:02:07]} Be7 {[%emt 0:01:46][%cal Bf8e7,Be7c5,Bc5d6][%mdl 32]} 10. d4 {[%emt 0:00:41]} O-O {[%emt 0:00:56]} 11. Nd2 $146 {[%emt 0:05:12]} (11. Bg5 Re8 12. Nd2 Qd6 13. c3 Ne4 14. Bxe7 Rxe7 15. f3 Nxd2 16. Qxd2 Rae8 17. Nd3 {1-0 Vo,H-Nguyen T Thu,H VIE-ch U15 Girls 2002 (7)}) 11... c5 {[%emt 0:03:15]} 12. dxc5 {[%emt 0:03:25]} Bxc5 {[%emt 0:00:43]} 13. Nb3 {[%emt 0:01:26]} Bd6 {[%emt 0:01:40]} 14. Bf4 {[%emt 0:02:10]} (14. Bg5 $1 $16) 14... Qc7 {[%emt 0:02:32] [#]} 15. Bg3 $1 {[%emt 0:00:33]} Rfe8 {[%emt 0:01:11]} 16. Nf3 {[%emt 0:01:45]} Bxg3 {[%emt 0:04:00]} 17. Rxe8+ {[%emt 0:03:24]} (17. fxg3 $6 Re4 $11) 17... Rxe8 {[%emt 0:00:11]} 18. hxg3 {[%emt 0:00:06]} (18. fxg3 $6 h6 $14) 18... h6 {[%emt 0:06:36]} 19. c3 {[%emt 0:02:34]} Ne4 {[%emt 0:05:57]} 20. Qd4 {[%emt 0:01:42]} f5 {[%emt 0:03:53]} (20... Qb8 $16 21. Nc5 Bc8) 21. Rc1 $18 {[%emt 0:06:05]} f4 {[%emt 0:10:39] [#]} 22. gxf4 {[%emt 0:00:18]} Qxf4 {[%emt 0:00:47]} 23. c4 {[%emt 0:09:18]} ({Better is} 23. Re1 $18) 23... dxc4 $16 {[%emt 0:04:53]} 24. Qxc4+ {[%emt 0:03:52]} Kh8 {[%emt 0:00:54]} 25. Qd4 {[%emt 0:03:35]} Qb8 {[%emt 0:03:45][%cal Oe4g3]} 26. Re1 {[%emt 0:03:21] Black is weak on the dark squares} Nf6 {[%emt 0:08:11]} 27. Ne5 {[%emt 0:05:08]} Kg8 {[%emt 0:07:43]} (27... Ng4 $142) 28. Nc5 {[%emt 0:04:12]} Bd5 {[%emt 0:08:40]} (28... a5 $16 {was worth a try.} 29. Ncd3 Qd8 30. Qxd8 Rxd8) 29. b3 {[%emt 0:10:07]} (29. Nxa6 $18 Qb7 30. Nc5) 29... Qa8 {[%emt 0:03:29]} 30. f3 {[%emt 0:01:07]} Qc8 {[%emt 0:05:51]} 31. Rc1 {[%emt 0:04:00][%cal Oe5d7]} Qf5 {[%emt 0:02:07]} 32. Re1 {[%emt 0:06:32]} Qc8 $1 {[%emt 0:04:35]} 33. Kf1 {[%emt 0:01:46]} Rd8 {[%emt 0:00:44][%cal Od5f3]} 34. Qf2 {[%emt 0:04:05] White has more active pieces.} Rd6 {[%emt 0:02:01]} 35. Ng6 {[%emt 0:06:28] and Ne7+ would now be decisive Excellent horsemanship.} Kf7 {[%emt 0:01:55]} (35... Qc7 $16) 36. Re7+ {[%emt 0:01:27]} (36. Ne7 $18 {is the precise move to win.} Qb8 37. Nf5) 36... Kxg6 $4 {[%emt 0:00:45][%mdl 8192] This costs Black the game.} (36... Kg8 $16) 37. Qg3+ $18 {[%emt 0:00:03]} Ng4 {[%emt 0:00:09]} 38. Qxd6+ {[%emt 0:00:05]} Kh7 {[%emt 0:00:23]} 39. Qxd5 {[%emt 0:00:29]} Ne3+ {[%emt 0:01:52] Weighted Error Value: White=0.28 (precise) /Black=0.55  Loses game:     	---       	Black=2      Mistake:       	White=4     	Black=3      Inaccurate:     	White=1     	Black=4      OK:         	White=12    	Black=2      Best:        	White=1     	Black=3      Strong:       	White=1     	Black=1} 1-0

[Event "41st OBSenEM 2025"]
[Site "Berlin"]
[Date "2025.02.04"]
[Round "1.4"]
[White "Krambeer, Bernd"]
[Black "Syre, Christian"]
[Result "0-1"]
[Annotator "NA RC"]
[ECO "B07"]
[WhiteElo "1848"]
[BlackElo "2150"]
[PlyCount "52"]
[EventDate "2025.02.04"]
[EventType "swiss"]
[EventCountry "GER"]
[SourceTitle "playchess.com"]
[Source "ChessBase"]
[SourceQuality "1"]
[TimeControl "40/5400+30:1800+30"]

1. e4 {[%emt 0:00:02]} d6 {[%emt 0:01:37]} 2. d4 {[%emt 0:00:10]} Nf6 {[%emt 0:00:05]} 3. Nc3 {[%emt 0:00:07]} g6 {[%emt 0:00:03]} 4. Bg5 {[%emt 0:00:46]} c6 {[%emt 0:01:28]} 5. a4 {[%emt 0:07:43]} Qa5 {[%emt 0:05:30]} 6. Qd2 {[%emt 0:03:06]} h6 {[%emt 0:00:35]} 7. Bf4 {[%emt 0:10:04]} e5 {[%emt 0:01:48]} 8. Be3 {[%emt 0:02:42]} Ng4 {[%emt 0:00:22]} 9. Bc4 {[%emt 0:11:09]} Bg7 {[%emt 0:07:48]} 10. Nf3 {[%emt 0:02:19]} Nxe3 {[%emt 0:01:31]} 11. fxe3 {[%emt 0:00:31]} O-O {[%emt 0:03:12]} 12. O-O-O {[%emt 0:14:53]} Nd7 {[%emt 0:01:20]} 13. Nh4 {[%emt 0:00:37]} Kh7 {[%emt 0:03:16]} 14. Qf2 {[%emt 0:13:51]} exd4 {[%emt 0:16:14]} 15. exd4 {[%emt 0:02:53]} Nb6 {[%emt 0:11:37]} 16. Bxf7 {[%emt 0:03:39]} Qg5+ {[%emt 0:01:12]} 17. Kb1 {[%emt 0:00:02]} Rxf7 {[%emt 0:00:11]} 18. Qxf7 {[%emt 0:00:11]} Qxh4 {[%emt 0:00:06]} 19. e5 {[%emt 0:02:13]} dxe5 {[%emt 0:11:01]} 20. dxe5 {[%emt 0:00:14]} Qb4 {[%emt 0:15:25]} 21. Na2 {[%emt 0:15:46]} Qc5 {[%emt 0:04:37]} 22. Rhe1 {[%emt 0:04:32]} Bf5 {[%emt 0:01:06]} 23. Rd2 {[%emt 0:00:26]} Nc4 {[%emt 0:04:02]} 24. Rde2 {[%emt 0:02:16]} Rd8 {[%emt 0:03:18]} 25. Nc3 {[%emt 0:01:28]} Qb4 {[%emt 0:01:19]} 26. b3 {[%emt 0:00:33]} Qxb3+ {[%emt 0:00:05]} 0-1

[Event "41st OBSenEM 2025"]
[Site "Berlin"]
[Date "2025.02.05"]
[Round "2.1"]
[White "Trebbin, Wolfhard"]
[Black "Meister, Jakob"]
[Result "0-1"]
[Annotator "TA"]
[ECO "B13"]
[WhiteElo "1918"]
[BlackElo "2418"]
[PlyCount "32"]
[EventDate "2025.02.04"]
[EventType "swiss"]
[EventCountry "GER"]
[SourceTitle "playchess.com"]
[Source "ChessBase"]
[SourceQuality "1"]
[TimeControl "40/5400+30:1800+30"]

{[%evp 13,32,-2,0,-37,-37,-29,-16,-35,-21,-51,-34,-37,-37,-72,-54,-60,-57,-57,-63,-224,-229]} 1. d4 {[%emt 0:00:02]} Nf6 {[%emt 0:00:11]} 2. Nf3 {[%emt 0:00:18]} c5 {[%emt 0:00:08]} 3. e3 {[%emt 0:01:13]} cxd4 {[%emt 0:00:28]} 4. exd4 {[%emt 0:00:01]} d5 {[%emt 0:00:11]} 5. Bd3 {[%emt 0:01:43]} Bg4 {[%emt 0:01:02]} 6. c3 {[%emt 0:01:51]} Nc6 {[%emt 0:00:18]} 7. Nbd2 {[%emt 0:03:32]} e6 {[%emt 0:01:01]} 8. Qb3 {[%emt 0:01:13] B13: Caro-Kann: Exchange Variation and Panov-Botvinnik Attack.} Qc7 {[%emt 0:01:03]} 9. O-O {[%emt 0:00:10]} Bd6 {[%emt 0:01:05]} 10. Re1 {[%emt 0:05:57] The position is equal.} O-O {[%emt 0:02:18]} 11. g3 {[%emt 0:04:31]} Rab8 {[%emt 0:02:33]} 12. Kg2 $146 {[%emt 0:04:42]} (12. Nh4 e5 13. dxe5 Nxe5 14. Bf1 Rfe8 15. f4 Ned7 16. Rxe8+ Rxe8 17. Ndf3 Nc5 18. Qc2 {0-1 Farcadi,H (2046)-Dumitru,M (2221) ROM-ch U18 Calimanesti Caciulata 2019 (7)}) 12... b5 {[%emt 0:03:00]} 13. Qc2 {[%emt 0:01:08]} Rfc8 {[%emt 0:04:11][%cal Oc6b4] Black is more active.} 14. h3 {[%emt 0:05:19]} Bh5 {[%emt 0:02:48][%cal Oc6b4]} 15. g4 {[%emt 0:01:53]} Bg6 {[%emt 0:00:17]} 16. Nh4 $2 {[%emt 0:00:34] [#]} (16. Bxg6 $15 hxg6 17. Kg1) 16... Nxd4 $1 {[%emt 0:01:36][%mdl 512] Weighted Error Value: White=0.40/Black=0.04 (flawless)   Loses game:     	White=1     	---        Inaccurate:     	White=2     	---        OK:         	---       	Black=6} 0-1

[Event "41st OBSenEM 2025"]
[Site "Berlin"]
[Date "2025.02.05"]
[Round "2.2"]
[White "Heinig, Wolfram"]
[Black "Wallmann, Bodo"]
[Result "1-0"]
[Annotator "TA"]
[ECO "E91"]
[WhiteElo "2196"]
[BlackElo "1904"]
[PlyCount "101"]
[EventDate "2025.02.04"]
[EventType "swiss"]
[EventCountry "GER"]
[SourceTitle "playchess.com"]
[Source "ChessBase"]
[SourceQuality "1"]
[TimeControl "40/5400+30:1800+30"]

{[%evp 17,101,80,79,73,81,73,68,74,93,96,93,97,95,89,80,94,96,53,57,50,93,98,103,91,79,41,57,50,131,56,55,48,52,49,76,37,34,27,31,22,22,21,23,0,0,0,0,0,7,0,0,0,74,6,117,112,124,122,122,121,116,122,125,114,125,116,127,113,108,107,127,89,182,178,281,279,291,208,281,279,358,331,368,372,918,918]} 1. d4 {[%emt 0:00:06]} Nf6 {[%emt 0:00:21]} 2. Nf3 {[%emt 0:00:32]} g6 {[%emt 0:00:33]} 3. c4 {[%emt 0:00:14]} Bg7 {[%emt 0:00:09]} 4. Nc3 {[%emt 0:00:14]} d6 {[%emt 0:00:51]} 5. e4 {[%emt 0:00:22]} Nc6 {[%emt 0:01:20]} 6. d5 {[%emt 0:03:08]} Ne5 {[%emt 0:02:21]} 7. Nxe5 {[%emt 0:00:40]} dxe5 {[%emt 0:00:12]} 8. Be2 {[%emt 0:00:54]} O-O {[%emt 0:00:25]} 9. O-O {[%emt 0:01:20]} e6 {[%emt 0:04:01]} 10. Bg5 {[%emt 0:04:23][%cal Bc1g5,Bg5h4,Bh4g3][%mdl 32]} h6 {[%emt 0:02:20]} 11. Bh4 {[%emt 0:01:13]} g5 {[%emt 0:00:29]} 12. Bg3 {[%emt 0:00:05] White is slightly better.} Ne8 {[%emt 0:02:20]} 13. Rc1 {[%emt 0:06:24]} f5 {[%emt 0:02:48] ...f4 would now be deadly.} 14. dxe6 {[%emt 0:15:36]} Qxd1 {[%emt 0:07:35]} 15. Rfxd1 {[%emt 0:02:30] Black must now prevent exf5.} (15. Rcxd1 Bxe6 16. exf5 Rxf5 $16) (15. Rcxd1 {simplifies} Bxe6 16. exf5 Bxf5 17. c5) 15... Bxe6 {[%emt 0:11:19] And now ...f4 would win.} 16. exf5 {[%emt 0:00:22]} Bxf5 {[%emt 0:00:22]} 17. Bf3 {[%emt 0:02:13]} c6 {[%emt 0:00:36]} 18. Be4 {[%emt 0:01:35]} Be6 {[%emt 0:01:42]} 19. b3 {[%emt 0:04:13]} Nc7 {[%emt 0:02:49]} 20. Na4 {[%emt 0:08:29]} Na6 {[%emt 0:07:07] Inhibits Nc5.} 21. Rd6 {[%emt 0:01:27]} Rfe8 {[%emt 0:01:56]} 22. Rcd1 {[%emt 0:02:00]} Rac8 {[%emt 0:00:33]} (22... Bf8 $14 23. Bg6 Bxd6 24. Bxe8 Bc7) 23. f3 {[%emt 0:04:33] White has more active pieces.} ({Better is} 23. Bg6 $16 Bf7 24. Bf5) 23... Kf7 $14 {[%emt 0:07:20]} 24. h4 {[%emt 0:10:45]} Bf8 {[%emt 0:05:16]} 25. R6d2 {[%emt 0:01:02]} Nc5 {[%emt 0:01:02]} 26. Nxc5 {[%emt 0:08:48]} (26. Bxe5 Nxe4 27. fxe4 b5 $14) 26... Bxc5+ {[%emt 0:00:13]} 27. Bf2 {[%emt 0:00:34]} Bxf2+ {[%emt 0:05:20]} 28. Kxf2 {[%emt 0:00:03]} gxh4 {[%emt 0:02:58]} 29. Rh1 {[%emt 0:01:22]} Rcd8 {[%emt 0:01:25]} 30. Rxd8 {[%emt 0:03:41]} Rxd8 $11 {[%emt 0:00:41][%mdl 4096] Endgame. KRB-KRB} 31. Ke3 {[%emt 0:00:10] Prevents Rd2.} Kf6 {[%emt 0:00:36]} 32. Rxh4 {[%emt 0:00:33]} Kg5 {[%emt 0:00:38]} 33. Rh1 {[%emt 0:01:15]} h5 {[%emt 0:00:59]} 34. g3 {[%emt 0:01:00][%cal Bg2g3,Bg3f4][%mdl 32]} Rd7 {[%emt 0:02:11]} (34... Bf7 $11) 35. Rh2 {[%emt 0:03:40]} (35. f4+ $16 exf4+ 36. gxf4+ Kh6 37. f5) 35... Rd1 {[%emt 0:02:48]} (35... Bf7 $11 {remains equal.}) 36. f4+ $1 $16 {[%emt 0:01:26]} exf4+ {[%emt 0:02:57]} 37. gxf4+ {[%emt 0:00:01]} Kh6 {[%emt 0:03:35]} 38. Bf3 {[%emt 0:01:07][%csl LRd1,LRh5] Prevents Bg4} Re1+ {[%emt 0:01:58]} 39. Kf2 {[%emt 0:00:59]} Ra1 {[%emt 0:00:38]} 40. Rxh5+ {[%emt 0:00:15]} ({Weaker is} 40. Bxh5 Rxa2+ 41. Be2+ Kg7 $15) 40... Kg6 {[%emt 0:00:52]} 41. Ra5 {[%emt 0:32:43]} a6 {[%emt 0:33:07] [#]} 42. Be4+ $1 {[%emt 0:00:59]} Kf6 {[%emt 0:00:27]} 43. Ke3 {[%emt 0:04:56]} Rd1 {[%emt 0:02:45]} 44. Bd3 {[%emt 0:00:30]} Bc8 {[%emt 0:00:47]} (44... Rh1 $16 {keeps fighting.}) 45. Rh5 $18 {[%emt 0:00:31]} Ra1 {[%emt 0:01:54]} (45... Re1+ $142 46. Kd4 Rd1) 46. Rh8 {[%emt 0:01:47]} Bd7 {[%emt 0:01:36]} 47. Rh7 {[%emt 0:01:50]} Bc8 {[%emt 0:00:26] [#]} 48. Rc7 $1 {[%emt 0:01:07]} Bg4 {[%emt 0:00:53]} 49. Rxb7 {[%emt 0:00:00]} Rxa2 {[%emt 0:00:00]} 50. Rc7 {[%emt 0:00:00]} Bd7 $2 {[%emt 0:00:00]} (50... c5 51. Rxc5 Ke7 52. Rc7+ Kd8) 51. Rxd7 {[%emt 0:00:00] Weighted Error Value: White=0.13 (very precise) /Black=0.26 (precise) .  Mistake:       	White=2     	Black=6      Inaccurate:     	White=3     	Black=3      OK:         	White=18    	Black=17     Best:        	White=3     	Black=2      Strong:       	White=2     	---} 1-0